[Event "Croatian Team Cup Final 2022"]
[Site "Vodice"]
[Date "2022.05.20"]
[Round "4.6"]
[White "Bukal, Vladimir Jr."]
[Black "Zaja, Ivan"]
[Result "1/2-1/2"]
[WhiteElo "2371"]
[BlackElo "2449"]
[Annotator "TA"]
[PlyCount "46"]
[EventDate "2022.05.18"]
[EventType "team-tourn"]
[EventCountry "CRO"]
[SourceTitle "playchess.com"]
[Source "ChessBase"]
[SourceQuality "1"]
[TimeControl "40/5400+30:1800+30"]

{[%evp 17,19,4,9,9]} 1. d4 {[%emt 0:00:02]} d5 {[%emt 0:00:05]} 2. Nf3 {[%emt 0:00:06]} Nf6 {[%emt 0:00:03]} 3. Bf4 {[%emt 0:00:07]} e6 {[%emt 0:00:17]} 4. e3 {[%emt 0:00:06]} Be7 {[%emt 0:00:09]} 5. Nbd2 {[%emt 0:00:16]} Nbd7 {[%emt 0:00:13]} 6. Bd3 {[%emt 0:00:08]} O-O {[%emt 0:00:09]} 7. O-O {[%emt 0:00:07]} b6 {[%emt 0:00:19]} 8. c3 {[%emt 0:00:18]} Bb7 {[%emt 0:00:18]} 9. h3 {[%emt 0:00:21]} c5 {[%emt 0:00:06]} 10. a4 {[%emt 0:00:17] [#] An uneventful encounter. D02: 1 d4 d5 2 Nf3 sidelines, including 2...Nf6 3 g3 and 2...Nf6 3 Bf4.} {Predecessor:} a6 $146 11. Qe2 g6 12. Bh6 Re8 13. e4 cxd4 14. Nxd4 e5 15. N4f3 Nc5 16. Bc2 dxe4 17. Ng5 Nd5 18. Ngxe4 Nf4 19. Qe3 Nxe4 20. Nxe4 f5 21. Bb3+ Kh8 22. Ng3 Bc5 23. Nxf5 gxf5 {0-1 (23) He,S (2399)-Fedoseev,V (2724) Chess.com INT 2018} 1/2-1/2

[Event "Croatian Team Cup Final 2022"]
[Site "Vodice"]
[Date "2022.05.20"]
[Round "4.7"]
[White "Kovacevic, Blazimir"]
[Black "Vujakovic, Branko"]
[Result "1/2-1/2"]
[ECO "A05"]
[WhiteElo "2401"]
[BlackElo "2292"]
[Annotator "TA"]
[PlyCount "61"]
[EventDate "2022.05.18"]
[EventType "team-tourn"]
[EventCountry "CRO"]
[SourceTitle "playchess.com"]
[Source "ChessBase"]
[SourceQuality "1"]
[TimeControl "40/5400+30:1800+30"]

{[%evp 11,61,10,31,17,41,20,32,22,27,14,22,21,36,44,48,35,40,28,45,48,60,28,48,0,0,12,0,-5,-7,0,0,-31,17,13,25,17,20,0,0,0,0,4,8,0,7,9,8,0,0,0,0,0]} 1. Nf3 {[%emt 0:00:05]} Nf6 {[%emt 0:00:08]} 2. c4 {[%emt 0:00:13]} g6 {[%emt 0:00:36]} 3. b3 {[%emt 0:00:22]} Bg7 {[%emt 0:00:30]} 4. Bb2 {[%emt 0:00:05]} O-O {[%emt 0:00:19]} 5. g3 {[%emt 0:00:20]} c5 {[%emt 0:00:28]} 6. Bg2 {[%emt 0:00:06]} d5 {[%emt 0:00:11]} 7. cxd5 $1 {[%emt 0:00:13] A05: Réti Opening: 1 Nf3 Nf6.} Qxd5 {[%emt 0:00:09]} 8. Nc3 {[%emt 0:00:27]} Qf5 {[%emt 0:01:36]} 9. Na4 {[%emt 0:02:33] White is slightly better.} Nbd7 {[%emt 0:00:47] [#]} 10. d4 $146 {[%emt 0:05:11]} ({Predecessor:} 10. O-O Nb6 11. Rc1 Nxa4 12. bxa4 Rd8 13. d3 Qh5 14. Qc2 Be6 15. Qxc5 Qxc5 16. Rxc5 Bxa2 {½-½ (23) Friend,R (1958)-Reppert,V (1928) LSS email 2015}) 10... cxd4 {[%emt 0:03:35]} 11. Nxd4 {[%emt 0:00:30]} Qa5+ {[%emt 0:00:02]} 12. Bc3 {[%emt 0:00:08][%cal Bb2c3,Bc3b4,Bb4d6][%mdl 32]} Qa6 {[%emt 0:00:48]} 13. O-O {[%emt 0:00:17]} e5 {[%emt 0:02:03]} 14. Nc2 {[%emt 0:00:17]} Rb8 {[%emt 0:14:49]} 15. Bb4 {[%emt 0:17:49]} Re8 {[%emt 0:01:23]} 16. Bd6 {[%emt 0:05:51]} Ra8 {[%emt 0:04:48]} 17. Nb4 {[%emt 0:04:21]} Qa5 {[%emt 0:01:45]} 18. Rc1 {[%emt 0:11:30]} e4 {[%emt 0:03:29]} 19. a3 {[%emt 0:11:01]} Qh5 {[%emt 0:05:31]} 20. e3 {[%emt 0:01:21]} Qf5 {[%emt 0:03:07]} ({Don't take} 20... Ng4 21. h3 Ndf6 22. Rc5 $16 (22. hxg4 Nxg4 23. Re1 Rd8 $14)) 21. Nc2 {[%emt 0:17:59]} Ne5 {[%emt 0:05:16]} (21... Qe6 $15) 22. Nd4 $11 {[%emt 0:01:03]} Qd7 {[%emt 0:01:39]} 23. Bxe5 {[%emt 0:05:01]} Rxe5 {[%emt 0:00:04] The position is equal.} 24. Rc5 {[%emt 0:00:33]} Qe8 {[%emt 0:08:47]} 25. Qc2 {[%emt 0:02:17]} Bf8 {[%emt 0:09:17]} 26. Rxe5 {[%emt 0:01:42]} Qxe5 {[%emt 0:00:02]} 27. Nc3 {[%emt 0:01:14]} Bxa3 {[%emt 0:02:06]} 28. Nxe4 {[%emt 0:00:21]} Nxe4 {[%emt 0:00:40]} 29. Qxe4 {[%emt 0:00:12]} Qxe4 {[%emt 0:04:53]} 30. Bxe4 {[%emt 0:00:04]} a6 {[%emt 0:05:57]} 31. Kg2 {[%emt 0:06:04] Weighted Error Value: White=0.07 (flawless) /Black=0.06 (flawless)} 1/2-1/2

[Event "Croatian Team Cup Final 2022"]
[Site "Vodice"]
[Date "2022.05.20"]
[Round "4.8"]
[White "Brumen, Dinko"]
[Black "Loncar, Robert"]
[Result "0-1"]
[ECO "E68"]
[WhiteElo "2313"]
[BlackElo "2370"]
[Annotator "TA"]
[PlyCount "122"]
[EventDate "2022.05.18"]
[EventType "team-tourn"]
[EventCountry "CRO"]
[SourceTitle "playchess.com"]
[Source "ChessBase"]
[SourceQuality "1"]
[TimeControl "40/5400+30:1800+30"]

{[%evp 19,122,33,34,11,33,28,31,12,23,0,37,46,63,56,60,48,61,49,46,24,35,-18,-26,-139,-108,-108,-6,0,13,0,0,0,0,-75,-76,-66,-62,-50,-52,-66,-16,-19,0,-112,-10,-66,-27,-15,-8,-8,-19,-12,0,-125,-120,-227,-241,-420,-420,-435,-420,-431,-427,-417,-354,-395,-396,-379,-379,-554,-550,-541,-518,-516,-467,-475,-465,-530,-495,-29964,-29964,-5281,-645,-645,-637,-29963,-29966,-29963,-29963,-12835,-12827,-5527,-2218,-29981,-29981,-29982,-29982,-29982,-29983,-29982,-29983,-29986,-29987,-29986,-29987]} 1. Nf3 {[%emt 0:00:03]} Nf6 {[%emt 0:19:26]} 2. c4 {[%emt 0:00:20]} g6 {[%emt 0:02:08]} 3. Nc3 {[%emt 0:01:00]} Bg7 {[%emt 0:00:17]} 4. g3 {[%emt 0:00:42]} O-O {[%emt 0:01:18]} 5. Bg2 {[%emt 0:00:52]} d6 {[%emt 0:00:46]} 6. O-O {[%emt 0:00:26]} e5 {[%emt 0:03:58]} 7. d4 {[%emt 0:05:17]} Nbd7 {[%emt 0:07:13]} 8. e4 {[%emt 0:02:37]} Re8 {[%emt 0:02:31]} 9. Re1 {[%emt 0:00:34]} exd4 {[%emt 0:00:54]} 10. Nxd4 {[%emt 0:00:28]} a6 {[%emt 0:01:01]} 11. Rb1 {[%emt 0:05:34] E68: King's Indian: Fianchetto: 6...Nbd7 7 0-0 e5 8 e4.} Rb8 {[%emt 0:01:16]} 12. b3 {[%emt 0:04:02][%cal Bb2b3,Bb3b4][%mdl 32]} Nc5 {[%emt 0:12:33] [#]} 13. b4 $146 {[%emt 0:05:40] White is slightly better.} ({Predecessor:} 13. f3 Ne6 14. Be3 c5 15. Nxe6 Bxe6 16. Qd2 b5 17. Bf1 Nd7 18. cxb5 Qf6 19. Nd5 Bxd5 20. Qxd5 axb5 {½-½ (47) Golikov,D (2114)-Chigaev,M (2551) St Petersburg 2016}) 13... Ncd7 {[%emt 0:06:42][%cal Bc5d7,Bd7f8,Bf8e6][%mdl 32]} 14. f4 {[%emt 0:08:29]} Nf8 {[%emt 0:13:05]} 15. Nd5 {[%emt 0:12:29]} c6 {[%emt 0:15:56]} 16. Nxf6+ {[%emt 0:01:41]} Bxf6 {[%emt 0:00:03]} 17. Be3 {[%emt 0:06:46]} Ne6 {[%emt 0:04:10]} 18. Nf3 {[%emt 0:03:33]} b5 {[%emt 0:04:15]} 19. cxb5 {[%emt 0:12:26]} cxb5 {[%emt 0:00:01]} 20. g4 {[%emt 0:05:32]} (20. Nd2 $14) 20... Bb7 $11 {[%emt 0:00:50]} 21. g5 {[%emt 0:02:41]} (21. Qd3 $1 $11 {remains equal.}) 21... Bc3 $17 {[%emt 0:00:45]} 22. Bd2 {[%emt 0:00:11]} Bg7 {[%emt 0:00:48] Black is more active.} (22... Rc8 $17 {aiming for ...d5.} 23. f5 Nf8 24. Bxc3 Rxc3) 23. f5 $1 $11 {[%emt 0:03:03]} Nd4 {[%emt 0:00:21]} 24. f6 {[%emt 0:05:41]} Nxf3+ {[%emt 0:00:02]} 25. Bxf3 {[%emt 0:00:24]} Bf8 {[%emt 0:00:01][%cal Oh7h6]} 26. Bf4 {[%emt 0:01:47]} (26. Rc1 $11 {keeps the balance.}) 26... Rc8 $17 {[%emt 0:00:30]} 27. Rc1 {[%emt 0:02:30]} Rxc1 {[%emt 0:00:45]} 28. Qxc1 {[%emt 0:00:17]} Qa8 {[%emt 0:01:44][%cal Rb7e4]} 29. Qb1 {[%emt 0:01:48]} d5 {[%emt 0:00:47]} (29... a5 $15) 30. e5 {[%emt 0:01:18]} d4 {[%emt 0:00:01]} 31. Bg4 {[%emt 0:03:13] [#]} (31. Bxb7 $11 {was the only way to keep the balance.} Qxb7 32. Bd2) 31... Bd5 {[%emt 0:01:05]} ({Better is} 31... Qd8 $1 $17 {[%cal Rd8d5]} 32. Rf1 d3) 32. e6 {[%emt 0:03:31]} (32. Bd7 $11) 32... Bxe6 {[%emt 0:00:18]} (32... fxe6 {seems wilder.} 33. Be5 Qc6 34. Qb2 Rc8) 33. Bxe6 {[%emt 0:00:08]} Rxe6 {[%emt 0:00:12]} 34. Rxe6 {[%emt 0:00:20]} fxe6 $15 {[%emt 0:00:02][%mdl 4096] Endgame KQB-KQB} 35. Qc2 $1 {[%emt 0:00:57]} Qb7 {[%emt 0:00:51]} ({Of course not} 35... Qf3 $6 36. Qc7 Qg4+ 37. Kf2 $15) 36. Be5 {[%emt 0:00:35]} (36. a3 $1 $11) 36... Qd7 {[%emt 0:00:40] Black keeps a firm grip on the game.} 37. Qd3 {[%emt 0:01:20]} (37. Qd2 $17 {might work better.}) 37... Bxb4 $19 {[%emt 0:00:23]} 38. f7+ $2 {[%emt 0:00:40]} (38. Kf1 {is a better defense.}) 38... Kxf7 {[%emt 0:00:40]} 39. Bxd4 {[%emt 0:00:18]} Qd5 {[%emt 0:00:35][%csl LRa2,LRg5] Prevents Qf3+.} 40. Qe3 {[%emt 0:00:00]} Ke8 {[%emt 0:00:00]} 41. Qf4 {[%emt 0:05:18]} e5 {[%emt 0:06:18]} 42. Bxe5 {[%emt 0:02:35]} Bc5+ {[%emt 0:00:01]} 43. Kf1 {[%emt 0:00:08]} Qxa2 {[%emt 0:03:23]} 44. Qf3 {[%emt 0:06:48]} (44. Bd6 $142 Qb1+ 45. Ke2 Qc2+ 46. Ke1) 44... Qb1+ {[%emt 0:03:35]} 45. Ke2 {[%emt 0:00:08]} Qc2+ {[%emt 0:00:36]} 46. Kf1 {[%emt 0:00:50]} Qc4+ {[%emt 0:01:22]} 47. Kg2 {[%emt 0:00:17]} Kd7 {[%emt 0:00:40] Inhibits Qc6+. Hoping for ...Ke6.} 48. Bf4 {[%emt 0:08:57]} Ke6 {[%emt 0:02:58] White must now prevent ...Qd5.} 49. Qc6+ {[%emt 0:03:39] [#]} (49. Kh3 $19) 49... Kf5 {[%emt 0:00:28]} 50. Qf6+ {[%emt 0:01:08]} Ke4 {[%emt 0:00:03]} (50... Kg4 $142 51. h3+ Kh5) 51. Bg3 {[%emt 0:01:32]} Qd5 {[%emt 0:05:30]} 52. Qxa6 {[%emt 0:01:30]} Ke3+ {[%emt 0:00:28]} 53. Kh3 {[%emt 0:02:55]} Kf3 {[%emt 0:00:02]} 54. Qf6+ {[%emt 0:01:39]} Qf5+ {[%emt 0:00:02]} 55. Kh4 {[%emt 0:00:28]} Be3 {[%emt 0:01:45]} (55... b4 $142 56. Be5 Bf2+ 57. Bg3 Kg2 58. Qxf5 Bxg3+ 59. hxg3 gxf5 60. g4 f4 61. Kh5 Kg3 62. g6 hxg6+ 63. Kh6 f3 64. Kxg6 f2 65. Kh7 Kxg4 66. Kh8 f1=Q 67. Kg7 Kg5 68. Kh7 Kf6 69. Kg8 Qg2+ 70. Kh8 Qg7#) 56. Qxf5+ {[%emt 0:00:42]} gxf5 {[%emt 0:00:03] KB-KB. Black mates.} 57. Be5 {[%emt 0:00:41]} Ke2 {[%emt 0:00:33]} 58. Kh5 {[%emt 0:00:30]} f4 {[%emt 0:00:09]} 59. h4 {[%emt 0:00:27]} f3 {[%emt 0:00:11]} 60. Bg3 {[%emt 0:00:17]} f2 {[%emt 0:00:10]} 61. Bxf2 {[%emt 0:00:08]} Bxf2 {[%emt 0:00:28] Weighted Error Value: White=0.52/Black=0.16 (very precise)} 0-1

[Event "Croatian Team Cup Final 2022"]
[Site "Vodice"]
[Date "2022.05.20"]
[Round "4.9"]
[White "Saric, Ante"]
[Black "Kozul, Zdenko"]
[Result "0-1"]
[ECO "D71"]
[WhiteElo "2510"]
[BlackElo "2621"]
[Annotator "TA"]
[PlyCount "116"]
[EventDate "2022.05.18"]
[EventType "team-tourn"]
[EventCountry "CRO"]
[SourceTitle "playchess.com"]
[Source "ChessBase"]
[SourceQuality "1"]
[TimeControl "40/5400+30:1800+30"]

{[%evp 9,116,21,22,0,2,0,0,0,0,0,0,0,-3,-5,0,0,0,-8,-8,-13,-8,-19,0,0,0,0,0,0,0,0,0,-16,0,0,0,-5,0,0,0,-8,0,0,0,0,0,0,0,-9,0,0,-6,-18,-25,-72,-54,-101,-82,-243,-245,-245,-247,-279,-200,-200,-200,-382,-388,-364,-361,-362,-331,-527,-527,-527,-511,-502,-471,-522,-508,-544,-506,-593,-388,-380,-366,-395,-381,-360,-323,-386,-342,-322,-317,-374,-368,-406,-418,-539,-508,-1522,-1535,-1244,-1096,-1535,-1460,-29961,-6147,-29986,-29986]} 1. d4 {[%emt 0:00:05]} Nf6 {[%emt 0:01:03]} 2. c4 {[%emt 0:00:05]} g6 {[%emt 0:00:07]} 3. g3 {[%emt 0:00:03]} c6 {[%emt 0:01:45]} 4. Bg2 {[%emt 0:00:05]} d5 {[%emt 0:00:06]} 5. Qa4 {[%emt 0:00:03]} Bd7 {[%emt 0:01:33]} (5... Bg7 6. cxd5 Nxd5 7. Nf3 O-O 8. O-O a5 9. e4 b5 10. Qc2 Nb6 11. Nc3 a4 12. Bf4 Na6 13. Rad1 Bg4 14. Ne2 Qc8 15. h3 Be6 16. b3 axb3 17. axb3 {½-½ (36) Saric,A (2543)-Kozul,Z (2597) Petrovac 2021}) 6. Qb3 {[%emt 0:11:07] [#] D71: Fianchetto Grünfeld: 3 g3 d5 sidelines and 5 cxd5 (without Nf3).} Qb6 $146 {[%emt 0:01:49]} ({Predecessor:} 6... Bc8 7. Nc3 e6 8. Nf3 Bg7 9. O-O O-O 10. Bf4 Nbd7 11. Rad1 Qb6 12. Qxb6 Nxb6 13. cxd5 Nbxd5 {0-1 (29) Pinos Cevallos,B (1640)-Alvarez Dominguez,H (1515) Guayaquil 2020}) 7. Nc3 {[%emt 0:00:00][%cal Rc4d5]} Be6 {[%emt 0:07:52]} (7... Bg7 {is interesting.} 8. Qxb6 axb6 9. cxd5 cxd5 10. Nf3 Bc6) 8. Qxb6 {[%emt 0:28:27] The position is equal.} axb6 {[%emt 0:01:26]} 9. cxd5 {[%emt 0:00:05]} Nxd5 {[%emt 0:00:36]} 10. Nxd5 {[%emt 0:01:27]} Bxd5 {[%emt 0:00:26]} 11. Bxd5 {[%emt 0:00:11]} cxd5 {[%emt 0:00:08]} 12. e3 {[%emt 0:00:23]} Nc6 {[%emt 0:02:13]} 13. Ne2 {[%emt 0:09:40]} e6 {[%emt 0:02:59]} 14. Nc3 {[%emt 0:02:42]} Kd7 {[%emt 0:02:58]} 15. Bd2 {[%emt 0:00:58]} Bb4 {[%emt 0:02:55]} 16. Ke2 {[%emt 0:01:30]} Bxc3 {[%emt 0:04:03]} 17. Bxc3 {[%emt 0:00:16]} b5 {[%emt 0:00:17]} 18. a3 {[%emt 0:06:31] Against b4} Ra6 {[%emt 0:01:31]} 19. Rac1 {[%emt 0:01:33]} Rha8 {[%emt 0:15:40]} 20. Rc2 {[%emt 0:05:56]} h5 {[%emt 0:08:18]} 21. h4 {[%emt 0:08:10]} Rb6 {[%emt 0:14:07]} 22. Rhc1 {[%emt 0:02:28]} Ra4 {[%emt 0:01:37]} 23. Kf3 {[%emt 0:04:34]} Ke7 {[%emt 0:01:52]} 24. Ke2 {[%emt 0:00:10]} Kf6 {[%emt 0:00:29]} 25. Bd2 {[%emt 0:04:07]} b4 {[%emt 0:03:22]} 26. axb4 {[%emt 0:01:07]} Nxb4 {[%emt 0:00:08]} 27. Rc8 {[%emt 0:03:59]} Nc6 {[%emt 0:02:21]} 28. Bc3 {[%emt 0:00:36]} Ne7 {[%emt 0:00:39]} 29. Rc7 {[%emt 0:01:27]} Nf5 {[%emt 0:00:09]} 30. Rc2 {[%emt 0:03:19]} Nd6 {[%emt 0:03:01]} (30... Rb3 {keeps more tension.} 31. Kd3 Kg7 32. Rc1 Nd6) 31. Kf3 {[%emt 0:00:27]} (31. f3 $11) 31... Ra2 $17 {[%emt 0:03:31]} 32. Rd7 {[%emt 0:01:24]} (32. Kf4 $15 {is superior.}) 32... Ne4 {[%emt 0:07:48]} 33. Be1 {[%emt 0:02:20] Now White is beyond hope.} (33. Rc1 $17) 33... Rbxb2 $19 {[%emt 0:01:58]} ({Stronger than} 33... Raxb2 34. Rcc7 Nd6 35. g4 $17) 34. Rxb2 {[%emt 0:00:49]} Rxb2 {[%emt 0:00:08][%mdl 4096] Endgame KRB-KRN} 35. Kg2 {[%emt 0:00:22]} Kg7 {[%emt 0:01:45]} 36. Kf1 {[%emt 0:00:46]} Kf8 {[%emt 0:00:26]} 37. f3 $2 {[%emt 0:00:50]} (37. Rd8+ Ke7 38. Ra8) 37... Ke8 {[%emt 0:00:23]} 38. Rc7 {[%emt 0:00:05]} Nd6 {[%emt 0:00:09]} 39. g4 {[%emt 0:01:04]} Nc4 {[%emt 0:01:08]} 40. gxh5 {[%emt 0:00:00]} (40. Bg3 {might work better.} hxg4 41. fxg4) 40... Nxe3+ {[%emt 0:00:00]} 41. Kg1 {[%emt 0:00:46] [#] And now h6 would win.} gxh5 {[%emt 0:00:53]} 42. Rc8+ {[%emt 0:00:22]} Kd7 {[%emt 0:08:07]} 43. Rf8 {[%emt 0:00:12]} Ke7 {[%emt 0:04:23]} 44. Rh8 {[%emt 0:00:15]} Nf5 {[%emt 0:04:27]} 45. Bf2 {[%emt 0:00:12]} Rd2 {[%emt 0:01:26]} 46. Rxh5 {[%emt 0:00:40]} Nxd4 {[%emt 0:00:16]} 47. Kg2 {[%emt 0:03:06]} Nf5 {[%emt 0:01:32] [#] ...d4 is the strong threat.} 48. Rh8 {[%emt 0:02:20]} Kf6 {[%emt 0:00:05]} 49. h5 {[%emt 0:00:23]} Kg7 {[%emt 0:00:07]} 50. Rb8 {[%emt 0:00:17]} Rb2 {[%emt 0:00:08]} 51. Kf1 {[%emt 0:01:49]} b5 {[%emt 0:06:00][%cal Bb7b5,Bb5b4,Bb4b3][%mdl 32]} 52. Bc5 {[%emt 0:00:38]} d4 {[%emt 0:00:39]} 53. Bf8+ {[%emt 0:04:03]} Kh7 {[%emt 0:00:36]} 54. Rd8 {[%emt 0:02:49]} (54. Bc5 $142 e5 55. Rf8) 54... b4 {[%emt 0:01:08]} 55. Bc5 {[%emt 0:00:17]} b3 {[%emt 0:00:13]} 56. Rd7 {[%emt 0:00:41]} Rc2 {[%emt 0:01:17]} 57. Rxf7+ {[%emt 0:01:33]} Kh6 {[%emt 0:00:44]} 58. Ba3 {[%emt 0:00:54]} Ne3+ {[%emt 0:01:20] Weighted Error Value: White=0.37/Black=0.12 (very precise)} 0-1

[Event "Croatian Team Cup Final 2022"]
[Site "Vodice"]
[Date "2022.05.20"]
[Round "4.10"]
[White "Stevic, Hrvoje"]
[Black "Plenca, Julijan"]
[Result "1-0"]
[ECO "C47"]
[WhiteElo "2558"]
[BlackElo "2443"]
[Annotator "TA"]
[PlyCount "93"]
[EventDate "2022.05.18"]
[EventType "team-tourn"]
[EventCountry "CRO"]
[SourceTitle "playchess.com"]
[Source "ChessBase"]
[SourceQuality "1"]
[TimeControl "40/5400+30:1800+30"]

{[%evp 13,93,0,0,8,3,0,-2,-4,18,0,4,0,0,12,16,2,7,13,23,16,26,14,27,6,12,-19,-28,-57,-57,-46,-54,-50,0,-51,0,0,1,0,10,0,0,-22,0,-39,0,0,28,-28,0,0,0,0,0,0,0,0,0,0,0,-7,-7,-16,0,0,16,0,0,0,12,0,38,37,35,33,155,68,281,235,2095,2208,2335,766]} 1. e4 {[%emt 0:00:04]} e5 {[%emt 0:00:05]} 2. Nf3 {[%emt 0:00:49]} Nc6 {[%emt 0:00:06]} 3. Nc3 {[%emt 0:00:25]} Nf6 {[%emt 0:00:35]} 4. d4 {[%emt 0:00:10]} exd4 {[%emt 0:00:06]} 5. Nxd4 {[%emt 0:00:07]} Bb4 {[%emt 0:00:05]} 6. Nxc6 {[%emt 0:00:13]} bxc6 {[%emt 0:00:05]} 7. Bd3 {[%emt 0:00:07]} d5 {[%emt 0:00:05]} 8. Bd2 {[%emt 0:00:24] C47: Scotch Four Knights and Four Knights with 4 g3.} Rb8 {[%emt 0:00:58]} 9. O-O {[%emt 0:13:15]} O-O {[%emt 0:00:14]} 10. Re1 {[%emt 0:00:38] The position is equal.} Ng4 {[%emt 0:00:10] Recently 10...Bg4 got a lot of attention.} 11. h3 {[%emt 0:00:25]} Ne5 {[%emt 0:00:05]} 12. exd5 {[%emt 0:00:20]} Nxd3 {[%emt 0:00:07]} 13. cxd3 {[%emt 0:00:07]} cxd5 {[%emt 0:00:09] [#]} 14. Rc1 $146 {[%emt 0:00:18]} ({Predecessor:} 14. d4 Be6 15. Rc1 Qh4 16. Be3 Bd6 17. b3 Bxh3 18. Nxd5 Bg4 19. f3 Be6 20. Nc3 {0-1 (40) Gharamian,T (2603)-Gareyev,T (2607) Nancy 2020}) 14... Be6 {[%emt 0:07:20]} 15. b3 {[%emt 0:00:53]} Ba3 {[%emt 0:01:32]} (15... Qf6 {is interesting.} 16. Na4 Bd6 17. Nc5 h6) 16. Rc2 {[%emt 0:00:44]} Re8 {[%emt 0:04:40]} 17. Qf3 {[%emt 0:08:54]} c5 {[%emt 0:11:08]} 18. Bf4 {[%emt 0:27:36]} Rc8 {[%emt 0:01:54]} (18... Rb4 $2 19. Nb1 $18) 19. Nb5 {[%emt 0:24:46] Strongly threatening Ree2.} Qa5 $1 {[%emt 0:01:32][%csl LRb5,LRe1]} 20. Rxe6 {[%emt 0:00:05]} Rxe6 {[%emt 0:01:18]} ({Don't do} 20... fxe6 21. Nd6 $16) 21. Nxa3 {[%emt 0:00:03]} Qxa3 {[%emt 0:00:24]} 22. Qxd5 {[%emt 0:00:05]} Re1+ {[%emt 0:08:19]} 23. Kh2 {[%emt 0:00:24]} Qb4 {[%emt 0:02:40]} (23... Ree8 $15) 24. Rc4 {[%emt 0:02:35]} Qb6 {[%emt 0:03:56]} 25. b4 {[%emt 0:02:44][%cal Rb4c5]} Rd8 {[%emt 0:02:58][%cal Bc8d8,Bd8d5,Bd5h5][%mdl 32]} (25... Qe6 $5 {[%cal Re6d5]} 26. Rxc5 Rxc5 27. Qxc5 Qd7 $11) 26. Qxc5 {[%emt 0:02:21]} h6 {[%emt 0:04:09]} 27. d4 {[%emt 0:01:55]} Qg6 {[%emt 0:01:55]} 28. Qc7 {[%emt 0:02:49]} Rd5 {[%emt 0:03:09]} 29. Qxa7 {[%emt 0:02:59] Black must now prevent Qa8+. The board is on fire.} Kh7 {[%emt 0:02:18] ...Qb1 is the strong threat.} 30. Qc7 {[%emt 0:01:28]} (30. Qa8 $142 Qe6 31. Rc6) 30... Rh5 {[%emt 0:00:54][%cal Oh5h3]} (30... Qb1 $5 {[%cal Re1h1]} 31. Rc6 (31. Qxf7 $2 Rf5 $17) 31... Rh1+ 32. Kg3 Rf5 $11) 31. Rc1 {[%emt 0:00:36]} Re2 {[%emt 0:01:32][%csl LRa2,LRf2]} 32. Be3 {[%emt 0:02:19] Hoping for a4.} ({Don't play} 32. Rc6 Qe4 33. Be3 (33. Bg3 Rg5 $17) 33... Rxa2 $14) 32... Rxa2 {[%emt 0:01:00]} 33. Qb8 {[%emt 0:00:41]} Rd5 {[%emt 0:03:07]} 34. Qb7 {[%emt 0:02:51]} Qd6+ {[%emt 0:01:34]} 35. Kg1 {[%emt 0:00:06]} Qe6 {[%emt 0:00:25]} 36. Rc5 {[%emt 0:03:23]} Rd7 {[%emt 0:02:49]} 37. Qf3 {[%emt 0:00:03]} Ra1+ {[%emt 0:01:18][%mdl 1024] Black has compensation.} 38. Kh2 {[%emt 0:00:00]} Qg6 {[%emt 0:01:35]} 39. b5 {[%emt 0:00:17][%cal Bb4b5,Bb5b6][%mdl 32] Threatens to win with Rc6.} Rd6 {[%emt 0:00:18]} 40. Rf5 {[%emt 0:00:00]} Rd7 {[%emt 0:00:00]} 41. d5 {[%emt 0:06:36]} Ra5 {[%emt 0:05:50]} 42. b6 {[%emt 0:07:43]} Rb5 {[%emt 0:04:51]} 43. g3 {[%emt 0:01:17]} f6 {[%emt 0:03:35]} (43... Qd6 $14) 44. h4 {[%emt 0:02:19]} ({White should try} 44. Qe4 $16) 44... Rb4 $2 {[%emt 0:03:20] [#]} ({Black should play} 44... Rd8 $14) 45. Bc5 $1 $18 {[%emt 0:02:10]} Qg4 {[%emt 0:02:44]} (45... Rb2 46. d6 Rd8) 46. Bxb4 {[%emt 0:01:30]} Qxb4 {[%emt 0:00:03] [#]} 47. Rxf6 $1 {[%emt 0:00:07][%mdl 512] Weighted Error Value: White=0.10 (very precise) /Black=0.27 (precise)} 1-0